fUSD/lending_fUSD_20260108
["ID","MTS","AMOUNT","RATE_DAILY","PERIOD"]
[400848549,1767844240796,-935.0,0.00013352,2]
[400848551,1767844240806,-507.0,0.00013352,2]
[400848553,1767844240816,-686.0,0.00013352,2]
[400848555,1767844240825,-422.0,0.00013352,2]
[400848557,1767844240835,-935.0,0.00013407,2]
[400848559,1767844240844,-507.0,0.00013407,2]
[400848561,1767844240853,-686.0,0.00013407,2]
[400848563,1767844240862,-422.0,0.00013407,2]
[400848565,1767844240872,-3515.70486538,0.00013417,2]
[400848567,1767844240881,-441.28813732,0.00013434,2]
[400848569,1767844240890,-935.0,0.00013462,2]
[400848571,1767844240898,-507.0,0.00013462,2]
[400848573,1767844240907,-686.0,0.00013462,2]
[400848575,1767844240916,-422.0,0.00013462,2]
[400848577,1767844240925,-1504.3,0.00013462,2]
[400848579,1767844240936,-569.43,0.00013494,2]
[400848581,1767844240945,-935.0,0.00013517,2]
[400848583,1767844240954,-507.0,0.00013517,2]
[400848585,1767844240963,-686.0,0.00013517,2]
[400848587,1767844240972,-422.0,0.00013517,2]
[400848589,1767844240981,-935.0,0.00013571,2]
[400848591,1767844240990,-507.0,0.00013571,2]
[400848593,1767844240999,-686.0,0.00013571,2]
[400848595,1767844241008,-422.0,0.00013571,2]
[400848597,1767844241018,-238.34988045,0.00013572,2]
[400848599,1767844241027,-875.27078638,0.00013598,2]
[400848601,1767844241036,-461.24,0.000136,2]
[400848603,1767844241045,-517.17,0.000136,2]
[400848605,1767844241055,-829.02,0.000136,2]
[400848607,1767844241064,-789.57,0.000136,2]
[400848609,1767844241073,-255.0,0.00013607,2]
[400848611,1767844241082,-2517.6250206,0.00013613,2]
[400848613,1767844241092,-942.20817409,0.00013626,2]
[400848615,1767844241101,-527.06247596,0.00013626,2]
[400848617,1767844241110,-694.05654745,0.00013626,2]
[400848619,1767844241119,-426.85856957,0.00013626,2]
[400848621,1767844241128,-13392.66,0.0001364,2]
[400848623,1767844241137,-3696.35,0.00013645,2]
[400848625,1767844241147,-246.55,0.00013647,2]
[400848627,1767844241157,-451.90263959,0.00013698,2]
[400848629,1767844241166,-500.0,0.00013698,2]
[400848631,1767844241175,-500.0,0.00013698,2]
[400848633,1767844241186,-184.55624416,0.00013698,2]
[400848635,1767844241195,-500.0,0.00013698,2]
[400848637,1767844241204,-500.0,0.00013698,2]
[400848639,1767844241217,-500.0,0.00013698,2]
[400848641,1767844241226,-500.0,0.00013698,2]
[400848643,1767844241235,-500.0,0.00013698,2]
[400848645,1767844241244,-500.0,0.00013698,2]
[400848647,1767844241254,-500.0,0.00013698,2]
[400848649,1767844241263,-500.0,0.00013698,2]
[400848651,1767844241272,-500.0,0.00013698,2]
[400848653,1767844241283,-503.34250989,0.00013698,2]
[400848655,1767844241292,-500.0,0.00013698,2]
[400848657,1767844241301,-525.03126034,0.00013698,2]
[400848659,1767844241310,-500.0,0.00013698,2]
[400848661,1767844241319,-500.0,0.00013698,2]
[400848663,1767844241328,-500.0,0.00013698,2]
[400848665,1767844241337,-500.0,0.00013698,2]
[400848667,1767844241346,-500.0,0.00013698,2]
[400848669,1767844241355,-500.0,0.00013698,2]
[400848671,1767844241364,-177.13628459,0.00013698,2]
[400848673,1767844241373,-500.0,0.00013698,2]
[400848675,1767844241383,-500.0,0.00013698,2]
[400848677,1767844241392,-500.0,0.00013698,2]
[400848679,1767844241401,-500.0,0.00013698,2]
[400848681,1767844241410,-500.0,0.00013698,2]
[400848683,1767844241419,-500.0,0.00013698,2]
[400848685,1767844241428,-500.0,0.00013698,2]
[400848687,1767844241439,-500.0,0.00013698,2]
[400848689,1767844241449,-500.0,0.00013698,2]
[400848691,1767844241458,-500.0,0.00013698,2]
[400848693,1767844241467,-500.0,0.00013698,2]
[400848695,1767844241476,-500.0,0.00013698,2]
[400848697,1767844241485,-500.0,0.00013698,2]
[400848699,1767844241494,-500.0,0.00013698,2]
[400848701,1767844241503,-500.0,0.00013698,2]
[400848703,1767844241511,-500.0,0.00013698,2]
[400848705,1767844241520,-500.0,0.00013698,2]
[400848707,1767844241529,-500.0,0.00013698,2]
[400848708,1767844241538,-500.0,0.00013698,2]
[400848710,1767844241549,-435.97578005,0.00013698,2]
[400848713,1767844241558,-500.0,0.00013698,2]
[400848714,1767844241568,-17421.90574155,0.00013715,2]
[400848716,1767844241577,-1504.3,0.00013736,2]
[400848718,1767844241586,-23411.60368284,0.00013768,2]
[400848721,1767844241595,-500.0,0.00013807,2]
[400848722,1767844241604,-500.0,0.00013918,2]
[400848724,1767844241614,-3895.88,0.00013921,2]
[400848726,1767844241623,-500.0,0.00013973,2]
[400848729,1767844241635,-500.0,0.00013973,2]
[400848731,1767844241644,-500.0,0.00013973,2]
[400848733,1767844241655,-500.0,0.00013973,2]
[400848734,1767844241664,-502.25127096,0.00013973,2]
[400848736,1767844241674,-2572.0,0.00013994,2]
[400848739,1767844241684,-250.031061,0.00014,2]
[400848740,1767844241693,-1504.3,0.0001401,2]
[400848743,1767844241703,-354.22122114,0.00014063,2]
[400848745,1767844241712,-354.22122114,0.00014063,2]
[400848747,1767844241721,-569.43,0.00014169,2]
[400848749,1767844241730,-587.0,0.0001423,2]
[400848751,1767844241740,-587.0,0.0001423,2]
[400848753,1767844241749,-2351.0,0.00014282,2]
[400848755,1767844241758,-1504.3,0.00014284,2]
[400848757,1767844241768,-17421.90574155,0.00014313,2]
[400848759,1767844241777,-23411.60368284,0.00014359,2]
[400848760,1767844241786,-875.27078638,0.00014459,2]
[400848762,1767844241795,-1000.0,0.00014488,2]
[400848764,1767844241804,-1504.3,0.00014558,2]
[400848766,1767844241814,-151.0,0.00014585,2]
[400848768,1767844241822,-198.43935064,0.00014659,2]
[400848770,1767844241831,-2572.0,0.00014694,2]
[400848772,1767844241840,-250.0,0.00014721,2]
[400848774,1767844241850,-151.66241854,0.00014732,2]
[400848776,1767844241859,-736.73634073,0.00014732,2]
[400848779,1767844241870,-151.0,0.00014732,2]
[400848780,1767844241879,-250.0,0.00014732,2]
[400848782,1767844241888,-270.73180541,0.00014732,2]
[400848784,1767844241897,-151.0,0.00014732,2]
[400848786,1767844241906,-574.12855637,0.00014732,2]
[400848788,1767844241915,-578.20924308,0.00014732,2]
[400848790,1767844241924,-1500.0,0.00014732,2]
[400848792,1767844241935,-1500.0,0.00014732,2]
[400848794,1767844241944,-500.0,0.00014732,2]
[400848796,1767844241953,-1500.0,0.00014732,2]
[400848798,1767844241962,-500.0,0.00014732,2]
[400848800,1767844241971,-1500.0,0.00014732,2]
[400848802,1767844241980,-500.0,0.00014732,2]
[400848804,1767844241990,-1500.0,0.00014732,2]
[400848806,1767844242000,-500.0,0.00014732,2]
[400848808,1767844242009,-500.0,0.00014732,2]
[400848810,1767844242018,-1500.0,0.00014732,2]
[400848812,1767844242027,-500.0,0.00014732,2]
[400848814,1767844242036,-500.0,0.00014732,2]
[400848816,1767844242045,-1500.0,0.00014732,2]
[400848818,1767844242054,-500.0,0.00014732,2]
[400848820,1767844242063,-500.0,0.00014732,2]
[400848822,1767844242073,-1500.0,0.00014732,2]
[400848824,1767844242082,-500.0,0.00014732,2]
[400848826,1767844242091,-500.0,0.00014732,2]
[400848828,1767844242101,-1500.0,0.00014732,2]
[400848830,1767844242110,-500.0,0.00014732,2]
[400848832,1767844242120,-500.0,0.00014732,2]
[400848834,1767844242130,-1500.0,0.00014732,2]
[400848836,1767844242139,-500.0,0.00014732,2]
[400848838,1767844242148,-500.0,0.00014732,2]
[400848840,1767844242158,-1500.0,0.00014732,2]
[400848842,1767844242167,-500.0,0.00014732,2]
[400848844,1767844242176,-500.0,0.00014732,2]
[400848846,1767844242186,-500.0,0.00014732,2]
[400848848,1767844242196,-500.0,0.00014732,2]
[400848850,1767844242206,-500.0,0.00014732,2]
[400848852,1767844242218,-500.0,0.00014732,2]
[400848854,1767844242228,-500.0,0.00014732,2]
[400848856,1767844242237,-500.0,0.00014732,2]
[400848858,1767844242246,-500.0,0.00014732,2]
[400848860,1767844242257,-500.0,0.00014732,2]
[400848862,1767844242266,-500.0,0.00014732,2]
[400848864,1767844242277,-419.1378307,0.00014732,2]
[400848866,1767844242286,-500.0,0.00014732,2]
[400848867,1767844242296,-500.0,0.00014732,2]
[400848870,1767844242306,-500.0,0.00014732,2]
[400848871,1767844242316,-500.0,0.00014732,2]
[400848874,1767844242326,-620.0,0.00014732,2]
[400848876,1767844242335,-500.0,0.00014732,2]
[400848878,1767844242345,-322.6107,0.00014732,2]
[400848880,1767844242354,-500.0,0.00014732,2]
[400848882,1767844242364,-500.0,0.00014732,2]
[400848884,1767844242373,-2000.0,0.00014732,2]
[400848886,1767844242383,-2000.0,0.00014732,2]
[400848887,1767844242392,-500.0,0.00014732,2]
[400848890,1767844242402,-2000.0,0.00014732,2]
[400848892,1767844242411,-500.0,0.00014732,2]
[400848893,1767844242420,-2000.0,0.00014732,2]
[400848896,1767844242430,-2000.0,0.00014732,2]
[400848898,1767844242439,-2000.0,0.00014732,2]
[400848899,1767844242449,-2000.0,0.00014732,2]
[400848901,1767844242458,-2000.0,0.00014732,2]
[400848904,1767844242468,-2000.0,0.00014732,2]
[400848905,1767844242477,-2000.0,0.00014732,2]
[400848907,1767844242486,-2000.0,0.00014732,2]
[400848909,1767844242496,-500.0,0.0001474,2]
[400848912,1767844242506,-500.22325222,0.00014763,2]
[400848914,1767844242515,-169.78239766,0.00014763,2]
[400848916,1767844242525,-500.0,0.00014763,2]
[400848918,1767844242534,-500.0,0.00014763,2]
[400848920,1767844242544,-500.0,0.00014763,2]
[400848921,1767844242553,-500.0,0.00014763,2]
[400848923,1767844242562,-500.0,0.00014763,2]
[400848926,1767844242571,-164.12535237,0.00014763,2]
[400848928,1767844242580,-500.0,0.00014763,2]
[400848929,1767844242590,-500.0,0.00014763,2]
[400848932,1767844242599,-500.0,0.00014763,2]
[400848934,1767844242608,-224.70175616,0.00014763,2]
[400848935,1767844242618,-500.0,0.00014763,2]
[400848938,1767844242627,-500.0,0.00014763,2]
[400848940,1767844242637,-500.0,0.00014763,2]
[400848942,1767844242646,-161.90897483,0.00014763,2]
[400848943,1767844242655,-552.68956986,0.00014763,2]
[400848945,1767844242664,-500.0,0.00014763,2]
[400848947,1767844242674,-500.0,0.00014763,2]
[400848949,1767844242685,-167.54885661,0.00014763,2]
[400848952,1767844242695,-500.0,0.00014763,2]
[400848954,1767844242704,-175.24655238,0.00014763,2]
[400848956,1767844242714,-536.85793514,0.00014763,2]
[400848958,1767844242723,-500.0,0.00014763,2]
[400848960,1767844242732,-500.0,0.00014763,2]
[400848962,1767844242742,-501.56644481,0.00014763,2]
[400848964,1767844242753,-216.92080784,0.00014763,2]
[400848966,1767844242762,-165.70843486,0.00014763,2]
[400848968,1767844242771,-500.0,0.00014763,2]
[400848970,1767844242781,-162.50130895,0.00014763,2]
[400848972,1767844242790,-169.07455586,0.00014763,2]
[400848974,1767844242799,-163.32215659,0.00014763,2]
[400848975,1767844242808,-500.0,0.00014763,2]
[400848977,1767844242818,-500.0,0.00014763,2]
[400848979,1767844242827,-500.0,0.00014763,2]
[400848981,1767844242836,-500.0,0.00014763,2]
[400848983,1767844242845,-166.27119183,0.00014763,2]
[400848985,1767844242854,-500.0,0.00014763,2]
[400848988,1767844242864,-500.0,0.00014763,2]
[400848990,1767844242873,-500.0,0.00014763,2]
[400848992,1767844242882,-486.22003068,0.00014763,2]
[400848994,1767844242891,-500.0,0.00014763,2]
[400848996,1767844242901,-500.0,0.00014763,2]
[400848998,1767844242910,-500.0,0.00014763,2]
[400849000,1767844242919,-500.0,0.00014763,2]
[400849002,1767844242928,-500.0,0.00014763,2]
[400849003,1767844242938,-500.0,0.00014763,2]
[400849004,1767844242947,-500.0,0.00014763,2]
[400849005,1767844242956,-500.0,0.00014763,2]
[400849006,1767844242965,-500.29238726,0.00014763,2]
[400849007,1767844242974,-500.0,0.00014763,2]
[400849008,1767844242983,-433.0,0.00014796,2]
[400849009,1767844242992,-151.0,0.000148,2]
[400849010,1767844243002,-151.0,0.000148,2]
[400849011,1767844243011,-354.22122114,0.0001483,2]
[400849012,1767844243020,-354.22122114,0.0001483,2]
[400849013,1767844243029,-1504.3,0.00014832,2]
[400849014,1767844243039,-569.43,0.00014843,2]
[400849015,1767844243048,-17421.90574155,0.00014911,2]
[400849016,1767844243057,-23411.60368284,0.00014949,2]
[400849017,1767844243066,-500.0,0.00015068,2]
[400849018,1767844243076,-500.0,0.00015099,2]
[400849020,1767844243085,-410.25491874,0.00015099,2]
[400849022,1767844243094,-500.0,0.00015099,2]
[400849024,1767844243102,-500.0,0.00015099,2]
[400849026,1767844243111,-500.0,0.00015099,2]
[400849028,1767844243120,-500.0,0.00015099,2]
[400849030,1767844243129,-500.0,0.00015099,2]
[400849032,1767844243138,-500.0,0.00015099,2]
[400849034,1767844243147,-755.93468828,0.00015105,2]
[400849036,1767844243156,-1504.3,0.00015106,2]
[400849038,1767844243166,-500.0,0.00015123,2]
[400849040,1767844243175,-500.0,0.00015178,2]
[400849042,1767844243186,-522.31501888,0.00015232,2]
[400849043,1767844243195,-589.01,0.00015246,2]
[400849045,1767844243205,-157.22325972,0.0001528,2]
[400849047,1767844243218,-152.48765181,0.0001528,2]
[400849049,1767844243227,-595.37131296,0.0001528,2]
[400849051,1767844243236,-166.61911688,0.0001531,2]
[400849053,1767844243246,-1000.0,0.0001531,2]
[400849055,1767844243257,-712.65120656,0.0001531,2]
[400849057,1767844243266,-1000.0,0.0001531,2]
[400849059,1767844243276,-1000.0,0.0001531,2]
[400849061,1767844243287,-1000.0,0.0001531,2]
[400849063,1767844243296,-415.93260674,0.0001531,2]
[400849065,1767844243306,-912.45872532,0.0001531,2]
[400849067,1767844243315,-1000.0,0.0001531,2]
[400849069,1767844243324,-1000.0,0.0001531,2]
[400849071,1767844243333,-500.44132788,0.0001531,2]
[400849073,1767844243343,-1000.0,0.0001531,2]
[400849076,1767844243353,-539.89725373,0.0001531,2]
[400849079,1767844243362,-1000.0,0.0001531,2]
[400849081,1767844243370,-1000.0,0.0001531,2]
[400849083,1767844243379,-1000.0,0.0001531,2]
[400849085,1767844243389,-1000.0,0.0001531,2]
[400849087,1767844243398,-1000.0,0.0001531,2]
[400849089,1767844243407,-1000.0,0.0001531,2]
[400849091,1767844243416,-812.00908556,0.0001531,2]
[400849093,1767844243425,-237.35203595,0.0001531,2]
[400849095,1767844243436,-1000.0,0.0001531,2]
[400849098,1767844243446,-1000.0,0.0001531,2]
[400849100,1767844243455,-500.3780208,0.0001531,2]
[400849101,1767844243464,-1000.0,0.0001531,2]
[400849103,1767844243473,-438.84534231,0.0001531,2]
[400849105,1767844243482,-1000.0,0.0001531,2]
[400849108,1767844243492,-1000.0,0.0001531,2]
[400849110,1767844243502,-1000.0,0.0001531,2]
[400849112,1767844243511,-1000.0,0.0001531,2]
[400849114,1767844243520,-1000.0,0.0001531,2]
[400849116,1767844243530,-1000.0,0.0001531,2]
[400849118,1767844243539,-332.64752003,0.0001531,2]
[400849120,1767844243548,-875.27078638,0.00015319,2]
[400849122,1767844243557,-654.79,0.00015364,2]
[400849124,1767844243566,-1504.3,0.0001538,2]
[400849126,1767844243575,-171.1,0.00015391,2]
[400849128,1767844243584,-2572.0,0.00015394,2]
[400849129,1767844243593,-17421.90574155,0.00015508,2]
[400849131,1767844243603,-637.69822594,0.00015516,2]
[400849133,1767844243612,-569.43,0.00015518,2]
[400849135,1767844243621,-23411.60368284,0.00015539,2]
[400849137,1767844243630,-500.0,0.00015561,2]
[400849139,1767844243639,-228.11739,0.00015601,2]
[400849141,1767844243648,-1000.0,0.00015616,2]
[400849143,1767844243657,-1000.0,0.00015616,2]
[400849145,1767844243667,-823.0,0.00015624,2]
[400849147,1767844243678,-823.0,0.00015624,2]
[400849149,1767844243687,-1504.3,0.00015654,2]
[400849151,1767844243696,-500.0,0.00015671,2]
[400849153,1767844243706,-3292.0,0.0001571,2]
[400849155,1767844243715,-500.0,0.00015753,2]
[400849157,1767844243724,-617.40005154,0.00015828,2]
[400849159,1767844243734,-194.549792,0.00015855,2]
[400849161,1767844243743,-516.8375445,0.00015858,2]
[400849163,1767844243753,-1500.0,0.00015858,2]
[400849165,1767844243762,-822.81176918,0.00015858,2]
[400849167,1767844243772,-1500.0,0.00015858,2]
[400849169,1767844243782,-1450.84693016,0.00015858,2]
[400849171,1767844243792,-1530.62564826,0.00015858,2]
[400849173,1767844243802,-556.63084022,0.00015858,2]
[400849175,1767844243812,-503.39731662,0.00015858,2]
[400849177,1767844243821,-1500.0,0.00015858,2]
[400849179,1767844243830,-1500.0,0.00015858,2]
[400849181,1767844243839,-656.27078391,0.00015858,2]
[400849183,1767844243848,-1500.0,0.00015858,2]
[400849185,1767844243857,-1511.09296657,0.00015858,2]
[400849187,1767844243867,-1500.0,0.00015858,2]
[400849189,1767844243876,-1500.0,0.00015858,2]
[400849191,1767844243885,-1001.84542925,0.00015858,2]
[400849193,1767844243895,-1500.0,0.00015858,2]
[400849195,1767844243904,-1500.0,0.00015858,2]
[400849197,1767844243913,-1500.0,0.00015858,2]
[400849199,1767844243923,-413.69875704,0.00015858,2]
[400849201,1767844243932,-1500.0,0.00015858,2]
[400849233,1767844244185,-1500.0,0.00015858,2]
[400849235,1767844244194,-18319.69,0.0001586,2]
[400849237,1767844244205,-1063.61847186,0.000159,2]
[400849239,1767844244218,-1000.0,0.00015918,2]
[400849241,1767844244227,-1504.3,0.00015928,2]
[400849243,1767844244237,-500.0,0.00015999,2]
[400849245,1767844244246,-500.0,0.00015999,2]
[400849247,1767844244257,-500.0,0.00015999,2]
[400849249,1767844244267,-200.0,0.00016,2]
[400849251,1767844244277,-736.0,0.00016073,2]
[400849253,1767844244288,-2572.0,0.00016094,2]
[400849255,1767844244297,-642.94,0.00016101,2]
[400849257,1767844244308,-334.5472959,0.00016101,2]
[400849259,1767844244318,-17421.90574155,0.00016106,2]
[400849262,1767844244327,-9999.99,0.00016116,2]
[400849264,1767844244337,-23411.60368284,0.00016129,2]
[400849266,1767844244347,-300.0,0.00016169,2]
[400849267,1767844244356,-875.27078638,0.00016179,2]
[400849269,1767844244365,-569.43,0.00016193,2]
[400849272,1767844244375,-150.0,0.000162,2]
[400849274,1767844244385,-1504.3,0.00016202,2]
[400849276,1767844244394,-150.0,0.00016246,2]
[400849278,1767844244403,-150.0,0.00016292,2]
[400849280,1767844244412,-589.01,0.00016323,2]
[400849282,1767844244422,-150.0,0.00016338,2]
[400849283,1767844244432,-640.24385345,0.00016376,2]
[400849285,1767844244442,-150.0,0.00016385,2]
[400849288,1767844244452,-1186.44134713,0.00016396,2]
[400849290,1767844244461,-162.0,0.000164,2]
[400849292,1767844244471,-172.0,0.000164,2]
[400849294,1767844244480,-833.0,0.000164,2]
[400849296,1767844244488,-162.0,0.000164,2]
[400849298,1767844244498,-162.0,0.000164,2]
[400849300,1767844244507,-2000.0,0.00016406,2]
[400849302,1767844244518,-1004.82287623,0.00016406,2]
[400849304,1767844244528,-2000.0,0.00016406,2]
[400849306,1767844244537,-2000.0,0.00016406,2]
[400849308,1767844244547,-2000.0,0.00016406,2]
[400849310,1767844244557,-2000.0,0.00016406,2]
[400849312,1767844244566,-2000.0,0.00016406,2]
[400849314,1767844244576,-2000.0,0.00016406,2]
[400849316,1767844244586,-2000.0,0.00016406,2]
[400849318,1767844244595,-877.66780599,0.00016406,2]
[400849320,1767844244605,-629.4325829,0.00016406,2]
[400849322,1767844244615,-2000.0,0.00016406,2]
[400849324,1767844244624,-171.1,0.00016421,2]
[400849326,1767844244633,-150.0,0.00016431,2]
[400849328,1767844244643,-500.0,0.00016437,2]
[400849330,1767844244652,-500.0,0.00016437,2]
[400849332,1767844244662,-500.0,0.00016437,2]
[400849334,1767844244671,-500.0,0.00016437,2]
[400849336,1767844244680,-746.68986434,0.00016438,2]
[400849338,1767844244690,-746.68986434,0.00016438,2]
[400849340,1767844244699,-746.68986434,0.00016438,2]
[400849342,1767844244708,-746.68986434,0.00016438,2]
[400849344,1767844244717,-746.68986434,0.00016438,2]
[400849346,1767844244729,-746.68986434,0.00016438,2]
[400849348,1767844244738,-746.68986434,0.00016438,2]
[400849350,1767844244748,-746.68986434,0.00016438,2]
[400849352,1767844244757,-746.68986434,0.00016438,2]
[400849354,1767844244766,-746.68986434,0.00016438,2]
[400849356,1767844244775,-746.68986434,0.00016438,2]
[400849358,1767844244784,-746.68986434,0.00016438,2]
[400849360,1767844244793,-746.68986434,0.00016438,2]
[400849362,1767844244804,-746.68986434,0.00016438,2]
[400849364,1767844244814,-746.68986434,0.00016438,2]
[400849366,1767844244823,-746.68986434,0.00016438,2]
[400849368,1767844244832,-746.68986434,0.00016438,2]
[400849370,1767844244841,-746.68986434,0.00016438,2]
[400849372,1767844244850,-746.68986434,0.00016438,2]
[400849374,1767844244859,-746.68986434,0.00016438,2]
[400849376,1767844244868,-746.68986434,0.00016438,2]
[400849378,1767844244878,-746.68986434,0.00016438,2]
[400849380,1767844244888,-746.68986434,0.00016438,2]
[400849382,1767844244897,-746.68986434,0.00016438,2]
[400849384,1767844244907,-746.68986434,0.00016438,2]
[400849386,1767844244918,-746.68986434,0.00016438,2]
[400849388,1767844244928,-746.68986434,0.00016438,2]
[400849390,1767844244937,-746.68986434,0.00016438,2]
[400849392,1767844244947,-746.68986434,0.00016438,2]
[400849394,1767844244956,-746.68986434,0.00016438,2]
[400849396,1767844244966,-746.68986434,0.00016438,2]
[400849398,1767844244976,-746.68986434,0.00016438,2]
[400849400,1767844244985,-746.68986434,0.00016438,2]
[400849402,1767844244995,-746.68986434,0.00016438,2]
[400849404,1767844245004,-746.68986434,0.00016438,2]
[400849406,1767844245014,-746.68986434,0.00016438,2]
[400849408,1767844245024,-746.68986434,0.00016438,2]
[400849410,1767844245033,-746.68986434,0.00016438,2]
[400849412,1767844245042,-746.68986434,0.00016438,2]
[400849414,1767844245051,-746.68986434,0.00016438,2]
[400849416,1767844245060,-746.68986434,0.00016438,2]
[400849418,1767844245070,-746.68986434,0.00016438,2]
[400849420,1767844245079,-746.68986434,0.00016438,2]
[400849422,1767844245088,-746.68986434,0.00016438,2]
[400849424,1767844245097,-746.68986434,0.00016438,2]
[400849426,1767844245107,-746.68986434,0.00016438,2]
[400849428,1767844245117,-746.68986434,0.00016438,2]
[400849430,1767844245127,-746.68986434,0.00016438,2]
[400849432,1767844245136,-746.68986434,0.00016438,2]
[400849434,1767844245144,-746.68986434,0.00016438,2]
[400849436,1767844245154,-746.68986434,0.00016438,2]
[400849439,1767844245164,-746.68986434,0.00016438,2]
[400849441,1767844245174,-3736.16879568,0.00016438,2]
[400849443,1767844245184,-3736.16879568,0.00016438,2]
[400849445,1767844245193,-3736.16879568,0.00016438,2]
[400849447,1767844245203,-3736.16879568,0.00016438,2]
[400849449,1767844245216,-3736.16879568,0.00016438,2]
[400849451,1767844245226,-3736.16879568,0.00016438,2]
[400849453,1767844245235,-3736.16879568,0.00016438,2]
[400849455,1767844245244,-3736.16879568,0.00016438,2]
[400849457,1767844245254,-3736.16879568,0.00016438,2]
[400849459,1767844245264,-3736.16879568,0.00016438,2]
[400849461,1767844245274,-3736.16879568,0.00016438,2]
[400849463,1767844245287,-3736.16879568,0.00016438,2]
[400849465,1767844245296,-3736.16879568,0.00016438,2]
[400849467,1767844245306,-3736.16879568,0.00016438,2]
[400849469,1767844245316,-3736.16879568,0.00016438,2]
[400849471,1767844245326,-3736.16879568,0.00016438,2]
[400849473,1767844245335,-3736.16879568,0.00016438,2]
[400849475,1767844245345,-3736.16879568,0.00016438,2]
[400849477,1767844245354,-3736.16879568,0.00016438,2]
[400849479,1767844245363,-3736.16879568,0.00016438,2]
[400849481,1767844245373,-3736.16879568,0.00016438,2]
[400849482,1767844245382,-3736.16879568,0.00016438,2]
[400849483,1767844245392,-3736.16879568,0.00016438,2]
[400849484,1767844245401,-3736.16879568,0.00016438,2]
[400849485,1767844245411,-3736.16879568,0.00016438,2]
[400849487,1767844245421,-3736.16879568,0.00016438,2]
[400849489,1767844245433,-3736.16879568,0.00016438,2]
[400849491,1767844245442,-3736.16879568,0.00016438,2]
[400849494,1767844245451,-3736.16879568,0.00016438,2]
[400849497,1767844245460,-3736.16879568,0.00016438,2]
[400849499,1767844245470,-3736.16879568,0.00016438,2]
[400849502,1767844245480,-3736.16879568,0.00016438,2]
[400849505,1767844245489,-3736.16879568,0.00016438,2]
[400849508,1767844245499,-3736.16879571,0.00016438,2]
[400849511,1767844245508,-3736.16879571,0.00016438,2]
[400849514,1767844245518,-3736.16879571,0.00016438,2]
[400849517,1767844245529,-500.0,0.00016438,2]
[400849520,1767844245538,-19419.51,0.00016438,2]
[400849524,1767844245553,-800.0,0.00016438,2]
[400849526,1767844245562,-250.0,0.00016438,3]
[400849529,1767844245571,-1000.0,0.00016459,2]
[400849532,1767844245582,-1504.44859706,0.00016476,2]
[400849535,1767844245591,-150.0,0.00016477,2]
[400849538,1767844245601,-500.0,0.00016493,2]
[400849542,1767844245612,-1000.0,0.00016515,2]
[400849545,1767844245622,-150.0,0.00016523,2]
[400849549,1767844245633,-500.0,0.00016548,2]
[400849552,1767844245642,-150.0,0.00016569,2]
[400849555,1767844245652,-195.08159117,0.00016602,2]
[400849558,1767844245661,-157.19112422,0.00016613,2]
[400849561,1767844245670,-150.0,0.00016615,2]
[400849564,1767844245681,-300.0,0.00016638,2]
[400849567,1767844245690,-150.0,0.00016662,2]
[400849570,1767844245700,-17421.90574155,0.00016704,2]
[400849573,1767844245709,-150.0,0.00016708,2]
[400849575,1767844245718,-637.69822592,0.00016708,2]
[400849578,1767844245729,-23411.60368284,0.0001672,2]
[400849581,1767844245738,-833.0,0.0001672,2]
[400849584,1767844245749,-162.0,0.0001672,2]
[400849587,1767844245768,-833.0,0.0001672,2]
[400849590,1767844245778,-162.0,0.0001672,2]
[400849593,1767844245794,-300.0,0.00016724,2]